fUST/lending_fUST_20250601
["ID","MTS","AMOUNT","RATE_DAILY","PERIOD"]
[363573586,1748772644897,-430.0,0.00017808,2]
[363573587,1748772644912,-430.0,0.00017808,2]
[363573588,1748772644923,-181.26777517,0.00017808,2]
[363573589,1748772644934,-430.0,0.00017808,2]
[363573590,1748772644946,-430.0,0.00017808,2]
[363573591,1748772644958,-203.62762939,0.00017808,2]
[363573592,1748772644969,-430.0,0.00017808,2]
[363573593,1748772644980,-430.0,0.00017808,2]
[363573594,1748772644991,-430.0,0.00017808,2]
[363573595,1748772645001,-430.0,0.00017808,2]
[363573596,1748772645012,-430.0,0.00017808,2]
[363573597,1748772645022,-430.0,0.00017808,2]
[363573598,1748772645031,-430.0,0.00017808,2]
[363573599,1748772645042,-150.70560515,0.00017808,2]
[363573600,1748772645052,-491.61,0.00017808,2]
[363573601,1748772645063,-896.34,0.00017808,2]
[363573602,1748772645073,-779.18,0.00017808,2]
[363573603,1748772645084,-199.98,0.00017808,2]
[363573604,1748772645094,-780.77,0.00017808,2]
[363573605,1748772645108,-430.0,0.00017808,2]
[363573606,1748772645119,-196.68,0.00017808,2]
[363573607,1748772645130,-1690.51,0.00017808,2]
[363573608,1748772645140,-430.0,0.00017808,2]
[363573609,1748772645150,-430.0,0.00017808,2]
[363573610,1748772645160,-430.0,0.00017808,2]
[363573611,1748772645171,-430.0,0.00017808,2]
[363573612,1748772645183,-528.8,0.00017808,2]
[363573613,1748772645194,-395.0,0.00017808,2]
[363573614,1748772645206,-430.0,0.00017808,2]
[363573615,1748772645215,-430.0,0.00017808,2]
[363573616,1748772645226,-439.73,0.00017808,2]
[363573617,1748772645236,-513.13960627,0.00017808,2]
[363573618,1748772645247,-430.0,0.00017808,2]
[363573619,1748772645257,-430.0,0.00017808,2]
[363573620,1748772645267,-430.0,0.00017808,2]
[363573621,1748772645278,-430.0,0.00017808,2]
[363573622,1748772645289,-430.0,0.00017808,2]
[363573623,1748772645299,-430.0,0.00017808,2]
[363573624,1748772645311,-430.0,0.00017808,2]
[363573625,1748772645322,-534.62,0.00017808,2]
[363573626,1748772645334,-430.0,0.00017808,2]
[363573628,1748772645345,-320.0,0.00017808,2]
[363573629,1748772645356,-430.0,0.00017808,2]
[363573630,1748772645367,-430.0,0.00017808,2]
[363573631,1748772645377,-453.05,0.00017808,2]
[363573632,1748772645387,-430.0,0.00017808,2]
[363573633,1748772645398,-430.0,0.00017808,2]
[363573634,1748772645408,-430.0,0.00017808,2]
[363573635,1748772645418,-955.09,0.00017808,2]
[363573636,1748772645428,-430.0,0.00017808,2]
[363573637,1748772645438,-430.0,0.00017808,2]
[363573638,1748772645448,-430.0,0.00017808,2]
[363573641,1748772645459,-625.62,0.00017808,2]
[363573643,1748772645469,-430.0,0.00017808,2]
[363573644,1748772645480,-788.91,0.00017808,2]
[363573645,1748772645491,-728.4,0.00017808,2]
[363573646,1748772645501,-430.0,0.00017808,2]
[363573647,1748772645512,-430.0,0.00017808,2]
[363573648,1748772645523,-1415.88,0.00017808,2]
[363573649,1748772645534,-308.35,0.00017808,2]
[363573651,1748772645545,-1217.89,0.00017808,2]
[363573653,1748772645556,-442.45,0.00017808,2]
[363573654,1748772645566,-575.21926067,0.00017831,2]
[363573655,1748772645578,-430.0,0.00018082,2]
[363573656,1748772645589,-430.0,0.00018082,2]
[363573657,1748772645601,-414.29511084,0.00018082,2]
[363573658,1748772645612,-430.0,0.00018082,2]
[363573660,1748772645622,-430.0,0.00018082,2]
[363573662,1748772645632,-430.0,0.00018082,2]
[363573664,1748772645646,-387.51,0.00018082,2]
[363573666,1748772645657,-430.0,0.00018082,2]
[363573668,1748772645669,-438.0068226,0.00018082,2]
[363573670,1748772645680,-430.0,0.00018082,2]
[363573672,1748772645691,-430.0,0.00018082,2]
[363573673,1748772645704,-478.96,0.00018082,2]
[363573674,1748772645715,-430.0,0.00018082,2]
[363573676,1748772645726,-430.0,0.00018082,2]
[363573678,1748772645880,-491.61,0.00018082,2]
[363573679,1748772645890,-896.34,0.00018082,2]
[363573680,1748772645903,-779.18,0.00018082,2]
[363573681,1748772645914,-780.77,0.00018082,2]
[363573682,1748772645925,-430.0,0.00018082,2]
[363573683,1748772645935,-1690.51,0.00018082,2]
[363573684,1748772645947,-430.0,0.00018082,2]
[363573685,1748772645961,-430.0,0.00018082,2]
[363573686,1748772645971,-430.0,0.00018082,2]
[363573687,1748772645982,-430.0,0.00018082,2]
[363573688,1748772645992,-528.8,0.00018082,2]
[363573689,1748772646002,-430.0,0.00018082,2]
[363573690,1748772646012,-430.0,0.00018082,2]
[363573691,1748772646023,-430.0,0.00018082,2]
[363573692,1748772646033,-430.0,0.00018082,2]
[363573693,1748772646042,-430.0,0.00018082,2]
[363573694,1748772646051,-430.0,0.00018082,2]
[363573695,1748772646061,-430.0,0.00018082,2]
[363573696,1748772646071,-430.0,0.00018082,2]
[363573697,1748772646080,-430.0,0.00018082,2]
[363573698,1748772646090,-430.0,0.00018082,2]
[363573699,1748772646100,-430.0,0.00018082,2]
[363573700,1748772646110,-453.05,0.00018082,2]
[363573701,1748772646120,-451.1,0.00018082,2]
[363573702,1748772646130,-430.0,0.00018082,2]
[363573703,1748772646140,-430.0,0.00018082,2]
[363573704,1748772646150,-955.09,0.00018082,2]
[363573705,1748772646160,-430.0,0.00018082,2]
[363573706,1748772646169,-430.0,0.00018082,2]
[363573707,1748772646180,-625.62,0.00018082,2]
[363573708,1748772646189,-430.0,0.00018082,2]
[363573709,1748772646200,-788.91,0.00018082,2]
[363573710,1748772646211,-728.4,0.00018082,2]
[363573711,1748772646221,-225.92,0.00018082,2]
[363573712,1748772646232,-430.0,0.00018082,2]
[363573713,1748772646242,-1415.88,0.00018082,2]
[363573714,1748772646253,-1217.89,0.00018082,2]
[363573715,1748772646263,-442.45,0.00018082,2]
[363573716,1748772646273,-575.21926067,0.00018107,2]
[363573717,1748772646283,-160.69429476,0.00018157,2]
[363573718,1748772646292,-159.53536824,0.00018192,2]
[363573719,1748772646302,-430.0,0.00018356,2]
[363573720,1748772646312,-430.0,0.00018356,2]
[363573721,1748772646322,-430.0,0.00018356,2]
[363573722,1748772646331,-280.7,0.00018356,2]
[363573723,1748772646341,-430.0,0.00018356,2]
[363573724,1748772646351,-430.0,0.00018356,2]
[363573725,1748772646361,-491.61,0.00018356,2]
[363573726,1748772646371,-896.34,0.00018356,2]
[363573727,1748772646380,-779.18,0.00018356,2]
[363573728,1748772646392,-780.77,0.00018356,2]
[363573729,1748772646402,-430.0,0.00018356,2]
[363573730,1748772646412,-1659.92799142,0.00018356,2]
[363573731,1748772646532,-30.58200858,0.00018356,2]
[363573732,1748772646543,-430.0,0.00018356,2]
[363573733,1748772646553,-430.0,0.00018356,2]
[363573734,1748772646562,-329.16112657,0.00018356,2]
[363573735,1748772646771,-430.0,0.00016438,2]
[363573736,1748772646781,-373.29590359,0.00016438,2]
[363573737,1748772646791,-430.0,0.00016438,2]
[363573738,1748772646800,-242.86288006,0.00018356,2]
[363573739,1748772646810,-430.0,0.00018356,2]
[363573740,1748772646820,-528.8,0.00018356,2]
[363573741,1748772646830,-430.0,0.00018356,2]
[363573742,1748772646840,-430.0,0.00018356,2]
[363573743,1748772646850,-66.81021885,0.00018356,2]
[363573744,1748772646862,-363.18978115,0.00018356,2]
[363573745,1748772646871,-430.0,0.00018356,2]
[363573746,1748772646882,-430.0,0.00018356,2]
[363573747,1748772646893,-280.96,0.00018356,2]
[363573748,1748772646906,-430.0,0.00018356,2]
[363573749,1748772646915,-430.0,0.00018356,2]
[363573750,1748772646925,-430.0,0.00018356,2]
[363573751,1748772646935,-430.0,0.00018356,2]
[363573752,1748772646945,-453.05,0.00018356,2]
[363573753,1748772646957,-430.0,0.00018356,2]
[363573754,1748772646967,-430.0,0.00018356,2]
[363573755,1748772646979,-955.09,0.00018356,2]
[363573756,1748772646989,-233.22,0.00018356,2]
[363573757,1748772646998,-430.0,0.00018356,2]
[363573758,1748772647008,-625.62,0.00018356,2]
[363573759,1748772647018,-430.0,0.00018356,2]
[363573760,1748772647028,-788.91,0.00018356,2]
[363573761,1748772647038,-728.4,0.00018356,2]
[363573762,1748772647048,-487.91,0.00018356,2]
[363573763,1748772647057,-683.13533268,0.00018356,2]
[363573764,1748772647069,-526.42099992,0.00018356,2]
[363573765,1748772647081,-206.3236674,0.00018356,2]
[363573766,1748772647091,-1217.89,0.00018356,2]
[363573767,1748772647101,-442.45,0.00018356,2]
[363573768,1748772647111,-264.43308714,0.00018383,2]
[363573769,1748772647123,-310.78617353,0.00018383,2]
[363573770,1748772647133,-520.24,0.00018612,2]
[363573771,1748772647143,-430.0,0.0001863,2]
[363573772,1748772647153,-430.0,0.0001863,2]
[363573773,1748772647163,-430.0,0.0001863,2]
[363573774,1748772647172,-491.61,0.0001863,2]
[363573775,1748772647182,-896.34,0.0001863,2]
[363573776,1748772647192,-779.18,0.0001863,2]
[363573777,1748772647203,-780.77,0.0001863,2]
[363573778,1748772647213,-430.0,0.0001863,2]
[363573779,1748772647223,-1690.51,0.0001863,2]
[363573780,1748772647233,-430.0,0.0001863,2]
[363573781,1748772647242,-430.0,0.0001863,2]
[363573782,1748772647252,-430.0,0.0001863,2]
[363573783,1748772647261,-528.8,0.0001863,2]
[363573784,1748772647270,-430.0,0.0001863,2]
[363573785,1748772647280,-430.0,0.0001863,2]
[363573786,1748772647290,-430.0,0.0001863,2]
[363573787,1748772647299,-430.0,0.0001863,2]
[363573788,1748772647309,-430.0,0.0001863,2]
[363573789,1748772647318,-420.74470056,0.0001863,2]
[363573790,1748772647328,-531.95,0.0001863,2]
[363573791,1748772647337,-430.0,0.0001863,2]
[363573792,1748772647347,-453.05,0.0001863,2]
[363573793,1748772647357,-430.0,0.0001863,2]
[363573794,1748772647366,-228.46,0.0001863,2]
[363573795,1748772647376,-955.09,0.0001863,2]
[363573796,1748772647385,-430.0,0.0001863,2]
[363573797,1748772647395,-625.62,0.0001863,2]
[363573798,1748772647405,-430.0,0.0001863,2]
[363573799,1748772647415,-788.91,0.0001863,2]
[363573800,1748772647425,-728.4,0.0001863,2]
[363573801,1748772647435,-1415.88,0.0001863,2]
[363573802,1748772647444,-1217.89,0.0001863,2]
[363573803,1748772647455,-442.45,0.0001863,2]
[363573804,1748772647465,-575.21926067,0.00018659,2]
[363573805,1748772647475,-708.0,0.0001886,2]
[363573806,1748772647485,-2227.0,0.0001886,2]
[363573807,1748772647495,-405.0,0.00018863,2]
[363573808,1748772647505,-2206.70296665,0.000189,2]
[363573809,1748772647514,-430.0,0.00018904,2]
[363573810,1748772647525,-238.24,0.00018904,2]
[363573811,1748772647535,-491.61,0.00018904,2]
[363573812,1748772647544,-896.34,0.00018904,2]
[363573813,1748772647554,-779.18,0.00018904,2]
[363573814,1748772647564,-780.77,0.00018904,2]
[363573815,1748772647574,-430.0,0.00018904,2]
[363573816,1748772647584,-1690.51,0.00018904,2]
[363573817,1748772647593,-430.0,0.00018904,2]
[363573818,1748772647603,-430.0,0.00018904,2]
[363573819,1748772647614,-430.0,0.00018904,2]
[363573820,1748772647624,-528.8,0.00018904,2]
[363573821,1748772647633,-430.0,0.00018904,2]
[363573822,1748772647643,-430.0,0.00018904,2]
[363573823,1748772647652,-430.0,0.00018904,2]
[363573824,1748772647662,-430.0,0.00018904,2]
[363573825,1748772647672,-130.45721513,0.00018904,2]
[363573826,1748772647684,-71.12278487,0.00018904,2]
[363573827,1748772647694,-430.4,0.00018904,2]
[363573828,1748772647703,-453.05,0.00018904,2]
[363573829,1748772647713,-300.67846471,0.00018904,2]
[363573830,1748772647895,-129.32153529,0.00018904,2]
[363573831,1748772647909,-955.09,0.00018904,2]
[363573832,1748772647919,-430.0,0.00018904,2]
[363573833,1748772647928,-625.62,0.00018904,2]
[363573834,1748772647939,-430.0,0.00018904,2]
[363573835,1748772647948,-788.91,0.00018904,2]
[363573836,1748772647959,-728.4,0.00018904,2]
[363573837,1748772647970,-1415.88,0.00018904,2]
[363573838,1748772647981,-1217.89,0.00018904,2]
[363573839,1748772647991,-405.99503019,0.00018904,2]
[363573840,1748772648003,-36.45496981,0.00018904,2]
[363573841,1748772648014,-575.21926067,0.00018934,2]
[363573842,1748772648023,-500.0,0.00019021,2]
[363573843,1748772648033,-356.49,0.00019178,2]
[363573844,1748772648043,-491.61,0.00019178,2]
[363573845,1748772648052,-896.34,0.00019178,2]
[363573846,1748772648062,-779.18,0.00019178,2]
[363573847,1748772648072,-780.77,0.00019178,2]
[363573848,1748772648081,-302.26828676,0.00019178,2]
[363573849,1748772648091,-1690.51,0.00019178,2]
[363573850,1748772648100,-430.0,0.00019178,2]
[363573851,1748772648110,-430.0,0.00019178,2]
[363573852,1748772648119,-430.0,0.00019178,2]
[363573853,1748772648130,-528.8,0.00019178,2]
[363573854,1748772648140,-430.0,0.00019178,2]
[363573855,1748772648150,-430.0,0.00019178,2]
[363573856,1748772648159,-430.0,0.00019178,2]
[363573857,1748772648169,-430.0,0.00019178,2]
[363573858,1748772648180,-453.05,0.00019178,2]
[363573859,1748772648193,-430.0,0.00019178,2]
[363573860,1748772648204,-955.09,0.00019178,2]
[363573861,1748772648214,-430.0,0.00019178,2]
[363573862,1748772648223,-625.62,0.00019178,2]
[363573863,1748772648232,-430.0,0.00019178,2]
[363573864,1748772648242,-788.91,0.00019178,2]
[363573865,1748772648251,-728.4,0.00019178,2]
[363573866,1748772648261,-1415.88,0.00019178,2]
[363573867,1748772648271,-1217.89,0.00019178,2]
[363573868,1748772648281,-430.0,0.00019178,2]
[363573869,1748772648292,-442.45,0.00019178,2]
[363573870,1748772648302,-173.946215,0.00019178,2]
[363573871,1748772648313,-575.21926067,0.0001921,2]
[363573872,1748772648323,-160.69429476,0.00019285,2]
[363573873,1748772648333,-491.61,0.00019452,2]
[363573874,1748772648343,-896.34,0.00019452,2]
[363573875,1748772648353,-779.18,0.00019452,2]
[363573876,1748772648364,-780.77,0.00019452,2]
[363573877,1748772648375,-1690.51,0.00019452,2]
[363573878,1748772648385,-430.0,0.00019452,2]
[363573879,1748772648395,-430.0,0.00019452,2]
[363573880,1748772648405,-430.0,0.00019452,2]
[363573881,1748772648415,-528.8,0.00019452,2]
[363573882,1748772648425,-450.94,0.00019452,2]
[363573883,1748772648435,-430.0,0.00019452,2]
[363573884,1748772648446,-430.0,0.00019452,2]
[363573885,1748772648459,-430.0,0.00019452,2]
[363573886,1748772648469,-453.05,0.00019452,2]
[363573887,1748772648479,-430.0,0.00019452,2]
[363573888,1748772648614,-955.09,0.00019452,2]
[363573889,1748772648627,-430.0,0.00019452,2]
[363573890,1748772648638,-625.62,0.00019452,2]
[363573891,1748772648647,-788.91,0.00019452,2]
[363573892,1748772648657,-430.0,0.00019452,2]
[363573893,1748772648667,-728.4,0.00019452,2]
[363573894,1748772648677,-1415.88,0.00019452,2]
[363573895,1748772648687,-1217.89,0.00019452,2]
[363573896,1748772648696,-442.45,0.00019452,2]
[363573897,1748772648707,-575.21926067,0.00019486,2]
[363573898,1748772648716,-1040.48,0.00019499,2]
[363573899,1748772648726,-241.427,0.00019502,2]
[363573900,1748772648736,-196.585,0.00019502,2]
[363573901,1748772648747,-150.79,0.0001953,2]
[363573902,1748772648757,-150.0,0.0001953,2]
[363573903,1748772648767,-156.305,0.0001953,2]
[363573904,1748772648778,-444.686,0.00019583,2]
[363573905,1748772648788,-207.4,0.00019638,2]
[363573906,1748772648798,-563.46,0.00019638,2]
[363573907,1748772648809,-207.10190885,0.00019638,2]
[363573908,1748772648819,-491.61,0.00019726,2]
[363573909,1748772648830,-896.34,0.00019726,2]
[363573910,1748772648840,-779.18,0.00019726,2]
[363573911,1748772648851,-780.77,0.00019726,2]
[363573912,1748772648861,-1690.51,0.00019726,2]
[363573913,1748772648871,-430.0,0.00019726,2]
[363573914,1748772648881,-430.0,0.00019726,2]
[363573915,1748772648891,-430.0,0.00019726,2]
[363573916,1748772648904,-528.8,0.00019726,2]
[363573917,1748772648915,-430.0,0.00019726,2]
[363573918,1748772648924,-430.0,0.00019726,2]
[363573919,1748772648934,-430.0,0.00019726,2]
[363573920,1748772648944,-453.05,0.00019726,2]
[363573921,1748772648955,-526.01020743,0.00019726,2]
[363573922,1748772648966,-955.09,0.00019726,2]
[363573923,1748772648978,-430.0,0.00019726,2]
[363573924,1748772648988,-625.62,0.00019726,2]
[363573925,1748772648998,-430.0,0.00019726,2]
[363573926,1748772649008,-788.91,0.00019726,2]
[363573927,1748772649018,-728.4,0.00019726,2]
[363573928,1748772649030,-1415.88,0.00019726,2]
[363573929,1748772649039,-1217.89,0.00019726,2]
[363573930,1748772649050,-442.45,0.00019726,2]
[363573931,1748772649060,-575.21926067,0.00019762,2]
[363573932,1748772649070,-500.0,0.00019954,2]
[363573933,1748772649080,-233.55678237,0.0002,2]
[363573934,1748772649090,-491.61,0.0002,2]
[363573935,1748772649101,-896.34,0.0002,2]
[363573936,1748772649111,-779.18,0.0002,2]
[363573937,1748772649122,-780.77,0.0002,2]
[363573938,1748772649132,-1690.51,0.0002,2]
[363573939,1748772649142,-430.0,0.0002,2]
[363573940,1748772649152,-430.0,0.0002,2]
[363573941,1748772649162,-430.0,0.0002,2]
[363573942,1748772649173,-528.8,0.0002,2]
[363573943,1748772649183,-353.89,0.0002,2]
[363573944,1748772649193,-430.0,0.0002,2]
[363573945,1748772649203,-430.0,0.0002,2]
[363573946,1748772649214,-10153.48218863,0.0002,2]
[363573947,1748772649224,-453.05,0.0002,2]
[363573948,1748772649234,-955.09,0.0002,2]
[363573949,1748772649245,-430.0,0.0002,2]
[363573950,1748772649255,-625.62,0.0002,2]
[363573951,1748772649266,-488.83,0.0002,2]
[363573952,1748772649276,-788.91,0.0002,2]
[363573953,1748772649287,-728.4,0.0002,2]
[363573954,1748772649297,-1415.88,0.0002,2]
[363573955,1748772649307,-1217.89,0.0002,2]
[363573956,1748772649317,-442.45,0.0002,2]
[363573957,1748772649327,-575.21926067,0.00020038,2]
[363573958,1748772649338,-159.53536824,0.00020046,2]
[363573959,1748772649348,-578.389259,0.00020187,2]
[363573960,1748772649359,-491.61,0.00020273,2]
[363573961,1748772649369,-896.34,0.00020273,2]
[363573962,1748772649380,-779.18,0.00020273,2]
[363573963,1748772649390,-780.77,0.00020273,2]
[363573964,1748772649400,-1690.51,0.00020273,2]
[363573965,1748772649410,-406.15,0.00020273,2]
[363573966,1748772649419,-430.0,0.00020273,2]
[363573967,1748772649428,-430.0,0.00020273,2]
[363573968,1748772649438,-528.8,0.00020273,2]
[363573969,1748772649448,-430.0,0.00020273,2]
[363573970,1748772649458,-430.0,0.00020273,2]
[363573971,1748772649468,-453.05,0.00020273,2]
[363573972,1748772649478,-955.09,0.00020273,2]
[363573973,1748772649488,-318.3,0.00020273,2]
[363573974,1748772649498,-625.62,0.00020273,2]
[363573975,1748772649507,-788.91,0.00020273,2]
[363573976,1748772649517,-728.4,0.00020273,2]
[363573977,1748772649526,-1415.88,0.00020273,2]
[363573978,1748772649537,-1217.89,0.00020273,2]
[363573979,1748772649547,-442.45,0.00020273,2]
[363573980,1748772649557,-575.21926067,0.00020314,3]
[363573981,1748772649567,-1560.72,0.00020385,2]
[363573982,1748772649577,-160.69429476,0.00020414,2]
[363573983,1748772649586,-327.91,0.000205,2]
[363573984,1748772649596,-491.61,0.00020547,2]
[363573985,1748772649605,-896.34,0.00020547,2]
[363573986,1748772649615,-779.18,0.00020547,2]
[363573987,1748772649624,-780.77,0.00020547,2]
[363573988,1748772649634,-1690.51,0.00020547,2]
[363573989,1748772649643,-430.0,0.00020547,2]
[363573990,1748772649653,-430.0,0.00020547,2]
[363573991,1748772649662,-528.8,0.00020547,2]
[363573992,1748772649671,-430.0,0.00020547,2]
[363573993,1748772649681,-430.0,0.00020547,2]
[363573994,1748772649691,-453.05,0.00020547,2]
[363573995,1748772649701,-955.09,0.00020547,2]
[363573996,1748772649711,-625.62,0.00020547,2]
[363573997,1748772649721,-788.91,0.00020547,2]
[363573998,1748772649730,-728.4,0.00020547,2]
[363573999,1748772649739,-1415.88,0.00020547,2]
[363574000,1748772649749,-1217.89,0.00020547,2]
[363574001,1748772649758,-442.45,0.00020547,2]
[363574002,1748772649769,-575.21926067,0.0002059,3]
[363574003,1748772649777,-3683.53,0.000206,2]
[363574004,1748772649786,-462.02,0.000206,2]
[363574005,1748772649796,-356.4,0.000208,2]
[363574006,1748772649805,-491.61,0.00020821,2]
[363574007,1748772649814,-896.34,0.00020821,2]
[363574008,1748772649823,-779.18,0.00020821,2]
[363574009,1748772649832,-780.77,0.00020821,2]
[363574010,1748772649842,-1690.51,0.00020821,2]
[363574011,1748772649852,-430.0,0.00020821,2]
[363574012,1748772649862,-430.0,0.00020821,2]
[363574013,1748772649871,-528.8,0.00020821,2]
[363574014,1748772649881,-430.0,0.00020821,2]
[363574015,1748772649890,-292.14562744,0.00020821,2]
[363574016,1748772649903,-453.05,0.00020821,2]
[363574017,1748772649912,-955.09,0.00020821,2]
[363574018,1748772649922,-625.62,0.00020821,2]
[363574019,1748772649932,-788.91,0.00020821,2]
[363574021,1748772649943,-728.4,0.00020821,2]
[363574022,1748772649952,-1415.88,0.00020821,2]
[363574024,1748772649963,-1217.89,0.00020821,2]
[363574026,1748772649973,-442.45,0.00020821,2]
[363574027,1748772649983,-575.21926067,0.00020866,4]
[363574028,1748772649992,-150.0,0.00021,2]
[363574029,1748772650002,-215.0738,0.00021007,2]
[363574030,1748772650011,-491.61,0.00021095,2]
[363574031,1748772650020,-896.34,0.00021095,2]
[363574032,1748772650030,-779.18,0.00021095,2]
[363574033,1748772650039,-780.77,0.00021095,2]
[363574034,1748772650049,-1690.51,0.00021095,2]
[363574035,1748772650058,-237.17,0.00021095,2]
[363574036,1748772650069,-476.74333701,0.00021095,2]
[363574037,1748772650079,-528.8,0.00021095,2]
[363574038,1748772650088,-430.0,0.00021095,2]
[363574039,1748772650098,-453.05,0.00021095,2]
[363574040,1748772650106,-955.09,0.00021095,2]
[363574041,1748772650116,-625.62,0.00021095,2]
[363574042,1748772650125,-788.91,0.00021095,2]
[363574043,1748772650134,-728.4,0.00021095,2]
[363574044,1748772650144,-1415.88,0.00021095,2]
[363574045,1748772650154,-1217.89,0.00021095,2]
[363574046,1748772650164,-442.45,0.00021095,2]
[363574047,1748772650173,-575.21926067,0.00021141,4]
[363574048,1748772650183,-2080.96,0.00021271,2]
[363574049,1748772650192,-19103.10174,0.00021368,2]
[363574050,1748772650202,-491.61,0.00021369,2]
[363574051,1748772650211,-896.34,0.00021369,2]
[363574052,1748772650220,-779.18,0.00021369,2]
[363574053,1748772650229,-780.77,0.00021369,2]
[363574054,1748772650238,-1690.51,0.00021369,2]
[363574055,1748772650248,-528.8,0.00021369,2]
[363574056,1748772650258,-430.0,0.00021369,2]
[363574057,1748772650268,-453.05,0.00021369,2]
[363574058,1748772650278,-955.09,0.00021369,2]
[363574059,1748772650287,-625.62,0.00021369,2]
[363574060,1748772650297,-788.91,0.00021369,2]
[363574061,1748772650306,-728.4,0.00021369,2]
[363574062,1748772650315,-1415.88,0.00021369,2]
[363574063,1748772650325,-1217.89,0.00021369,2]
[363574064,1748772650334,-442.45,0.00021369,2]
[363574065,1748772650343,-575.21926067,0.00021417,5]
[363574066,1748772650354,-160.69429476,0.00021542,2]
[363574067,1748772650364,-491.61,0.00021643,2]
[363574068,1748772650374,-896.34,0.00021643,2]
[363574069,1748772650383,-779.18,0.00021643,2]
[363574070,1748772650393,-780.77,0.00021643,2]
[363574071,1748772650402,-1690.51,0.00021643,2]
[363574072,1748772650412,-528.8,0.00021643,2]
[363574073,1748772650421,-559.2,0.00021643,2]
[363574074,1748772650431,-453.05,0.00021643,2]
[363574075,1748772650441,-955.09,0.00021643,2]
[363574076,1748772650451,-625.62,0.00021643,2]
[363574077,1748772650461,-788.91,0.00021643,2]
[363574078,1748772650471,-728.4,0.00021643,2]
[363574079,1748772650481,-1415.88,0.00021643,2]
[363574080,1748772650491,-1217.89,0.00021643,2]
[363574081,1748772650501,-442.45,0.00021643,2]
[363574082,1748772650510,-575.21926067,0.00021693,5]
[363574083,1748772650520,-983.74,0.000218,7]
[363574084,1748772650530,-207.227,0.0002186,2]
[363574085,1748772650539,-2227.0,0.0002186,2]
[363574086,1748772650549,-405.0,0.00021863,2]
[363574087,1748772650558,-3302.31,0.00021899,2]
[363574088,1748772650567,-159.53536824,0.000219,2]
[363574089,1748772650577,-500.0,0.00021917,2]
[363574090,1748772650586,-491.61,0.00021917,2]
[363574091,1748772650596,-896.34,0.00021917,2]
[363574092,1748772650606,-779.18,0.00021917,2]
[363574093,1748772650615,-780.77,0.00021917,2]
[363574094,1748772650625,-1690.51,0.00021917,2]
[363574095,1748772650636,-528.8,0.00021917,2]
[363574096,1748772650646,-453.05,0.00021917,2]
[363574097,1748772650656,-955.09,0.00021917,2]
[363574098,1748772650666,-625.62,0.00021917,2]
[363574099,1748772650675,-788.91,0.00021917,2]
[363574100,1748772650685,-728.4,0.00021917,2]
[363574101,1748772650695,-1415.88,0.00021917,2]
[363574102,1748772650705,-1217.89,0.00021917,2]
[363574103,1748772650715,-442.45,0.00021917,2]